[Event "Late-Titled-Tuesday-Blitz-April-30-2024"]
[Site "Chess.com"]
[Date "2024.04.30"]
[Round "8"]
[White "ALBERT_KLOC"]
[Black "Walter_White_Poland"]
[Result "1/2-1/2"]
[WhiteElo "2478"]
[BlackElo "2370"]
[TimeControl "180+1"]
[EndTime "15:29:47 PDT"]
[Termination "Game drawn - insufficient material"]

1. c4 {[%clk 0:03:00.9]} 1... c5 {[%clk 0:02:59]} 2. g3 {[%clk 0:02:57.1]} 2...
Nc6 {[%clk 0:02:58.3]} 3. Bg2 {[%clk 0:02:57.2]} 3... g6 {[%clk 0:02:58.6]} 4.
Nc3 {[%clk 0:02:55.6]} 4... Bg7 {[%clk 0:02:58.5]} 5. e4 {[%clk 0:02:55.7]} 5...
e5 {[%clk 0:02:57]} 6. Nge2 {[%clk 0:02:55.4]} 6... d6 {[%clk 0:02:56.9]} 7. d3
{[%clk 0:02:55.3]} 7... Nge7 {[%clk 0:02:55]} 8. a3 {[%clk 0:02:55.3]} 8... a6
{[%clk 0:02:53.1]} 9. Rb1 {[%clk 0:02:55.4]} 9... Rb8 {[%clk 0:02:53]} 10. b4
{[%clk 0:02:55.6]} 10... cxb4 {[%clk 0:02:53.1]} 11. axb4 {[%clk 0:02:56.5]}
11... b5 {[%clk 0:02:53]} 12. cxb5 {[%clk 0:02:54.5]} 12... axb5 {[%clk
0:02:53.1]} 13. Bg5 {[%clk 0:02:52.6]} 13... h6 {[%clk 0:02:51.1]} 14. Bxe7
{[%clk 0:02:49.2]} 14... Nxe7 {[%clk 0:02:46.2]} 15. O-O {[%clk 0:02:47.8]}
15... O-O {[%clk 0:02:43.8]} 16. d4 {[%clk 0:02:47.7]} 16... Be6 {[%clk
0:02:36.5]} 17. d5 {[%clk 0:02:39.5]} 17... Bd7 {[%clk 0:02:36.3]} 18. Qd3
{[%clk 0:02:34.9]} 18... f5 {[%clk 0:02:34.7]} 19. f3 {[%clk 0:02:31.2]} 19...
f4 {[%clk 0:02:32.7]} 20. Ra1 {[%clk 0:02:10]} 20... g5 {[%clk 0:02:28.4]} 21.
g4 {[%clk 0:01:58.3]} 21... Qb6+ {[%clk 0:02:25.1]} 22. Kh1 {[%clk 0:01:57.2]}
22... Ng6 {[%clk 0:02:25]} 23. Rfc1 {[%clk 0:01:54.9]} 23... Nh4 {[%clk
0:02:22.5]} 24. Bf1 {[%clk 0:01:55.1]} 24... Qf2 {[%clk 0:02:11.2]} 25. Ng1
{[%clk 0:01:49.6]} 25... Rfc8 {[%clk 0:01:58.4]} 26. Nd1 {[%clk 0:01:41.9]}
26... Qd4 {[%clk 0:01:45.7]} 27. h3 {[%clk 0:01:29.5]} 27... Qxb4 {[%clk
0:01:32.3]} 28. Ne2 {[%clk 0:01:04.5]} 28... Rc4 {[%clk 0:01:11]} 29. Rab1
{[%clk 0:01:01.2]} 29... Rd4 {[%clk 0:00:30.3]} 30. Nxd4 {[%clk 0:00:58.1]}
30... Qxd4 {[%clk 0:00:30.1]} 31. Qxd4 {[%clk 0:00:54.6]} 31... exd4 {[%clk
0:00:30.1]} 32. Rb3 {[%clk 0:00:51.2]} 32... Kf8 {[%clk 0:00:21.6]} 33. Kg1
{[%clk 0:00:50.2]} 33... Ke7 {[%clk 0:00:20]} 34. Kf2 {[%clk 0:00:50.2]} 34...
Kd8 {[%clk 0:00:19.8]} 35. Bd3 {[%clk 0:00:50.3]} 35... Ra8 {[%clk 0:00:18.9]}
36. Rcb1 {[%clk 0:00:50.1]} 36... Ra2+ {[%clk 0:00:18.1]} 37. R3b2 {[%clk
0:00:50.4]} 37... Ra3 {[%clk 0:00:17.8]} 38. Rb3 {[%clk 0:00:50.2]} 38... Ra2+
{[%clk 0:00:18.2]} 39. R1b2 {[%clk 0:00:41.8]} 39... Ra1 {[%clk 0:00:18]} 40.
Ke2 {[%clk 0:00:33.7]} 40... Ng2 {[%clk 0:00:16.4]} 41. Rb1 {[%clk 0:00:28.1]}
41... Ra2+ {[%clk 0:00:15.6]} 42. R3b2 {[%clk 0:00:28.6]} 42... Ra3 {[%clk
0:00:15.1]} 43. Rc2 {[%clk 0:00:22.9]} 43... Ne3 {[%clk 0:00:13.8]} 44. Nxe3
{[%clk 0:00:22.3]} 44... dxe3 {[%clk 0:00:14.1]} 45. Bxb5 {[%clk 0:00:21.3]}
45... Bxb5+ {[%clk 0:00:10.2]} 46. Rxb5 {[%clk 0:00:22.2]} 46... Ra1 {[%clk
0:00:10.1]} 47. Rb8+ {[%clk 0:00:22]} 47... Ke7 {[%clk 0:00:09.1]} 48. Rb7+
{[%clk 0:00:22.4]} 48... Kf6 {[%clk 0:00:09.3]} 49. Rd7 {[%clk 0:00:19.6]} 49...
Rh1 {[%clk 0:00:07.1]} 50. Rxd6+ {[%clk 0:00:18.7]} 50... Ke5 {[%clk 0:00:07.2]}
51. Re6+ {[%clk 0:00:17.7]} 51... Kd4 {[%clk 0:00:07.4]} 52. Rec6 {[%clk
0:00:12.9]} 52... Rh2+ {[%clk 0:00:06.4]} 53. Kf1 {[%clk 0:00:13.1]} 53... Rh1+
{[%clk 0:00:06.4]} 54. Kg2 {[%clk 0:00:13.3]} 54... Rd1 {[%clk 0:00:06.9]} 55.
R6c4+ {[%clk 0:00:13]} 55... Kd3 {[%clk 0:00:06.7]} 56. d6 {[%clk 0:00:12.8]}
56... Bf6 {[%clk 0:00:02.4]} 57. d7 {[%clk 0:00:10.6]} 57... e2 {[%clk
0:00:02.1]} 58. Rxe2 {[%clk 0:00:06.8]} 58... Kxe2 {[%clk 0:00:02.1]} 59. Rc6
{[%clk 0:00:06.7]} 59... Bd8 {[%clk 0:00:01.7]} 60. Rxh6 {[%clk 0:00:06.2]}
60... Rxd7 {[%clk 0:00:01.6]} 61. h4 {[%clk 0:00:06.4]} 61... Ke3 {[%clk
0:00:02.1]} 62. hxg5 {[%clk 0:00:05.2]} 62... Rd2+ {[%clk 0:00:03]} 63. Kh3
{[%clk 0:00:05.2]} 63... Bxg5 {[%clk 0:00:03.5]} 64. Rg6 {[%clk 0:00:05.5]}
64... Be7 {[%clk 0:00:03.3]} 65. Re6 {[%clk 0:00:05.4]} 65... Bc5 {[%clk
0:00:03.1]} 66. g5 {[%clk 0:00:05.9]} 66... Kxf3 {[%clk 0:00:03]} 67. g6 {[%clk
0:00:04.2]} 67... Bg1 {[%clk 0:00:03.3]} 68. Kh4 {[%clk 0:00:04.5]} 68... Rh2+
{[%clk 0:00:03.2]} 69. Kg5 {[%clk 0:00:05.4]} 69... Rg2+ {[%clk 0:00:03.6]} 70.
Kf5 {[%clk 0:00:05.6]} 70... Bd4 {[%clk 0:00:03.7]} 71. e5 {[%clk 0:00:05.4]}
71... Ke3 {[%clk 0:00:03.7]} 72. Rd6 {[%clk 0:00:05.5]} 72... f3 {[%clk
0:00:03.6]} 73. Ra6 {[%clk 0:00:02.3]} 73... f2 {[%clk 0:00:03.6]} 74. Ra3+
{[%clk 0:00:03]} 74... Kd2 {[%clk 0:00:03.9]} 75. Ra2+ {[%clk 0:00:03.3]} 75...
Ke1 {[%clk 0:00:03.9]} 76. Rxf2 {[%clk 0:00:01.6]} 76... Rxf2+ {[%clk
0:00:04.3]} 77. Ke6 {[%clk 0:00:02.4]} 77... Re2 {[%clk 0:00:04.6]} 78. Kf7
{[%clk 0:00:02.9]} 78... Rxe5 {[%clk 0:00:04.4]} 79. g7 {[%clk 0:00:03.8]} 79...
Rf5+ {[%clk 0:00:04.8]} 80. Kg6 {[%clk 0:00:03.9]} 80... Rf2 {[%clk 0:00:04.9]}
81. g8=Q {[%clk 0:00:04.2]} 81... Rg2+ {[%clk 0:00:05.3]} 82. Kf7 {[%clk
0:00:04.9]} 82... Rxg8 {[%clk 0:00:05]} 83. Kxg8 {[%clk 0:00:05.8]} 1/2-1/2

[Event "Late-Titled-Tuesday-Blitz-April-30-2024"]
[Site "Chess.com"]
[Date "2024.04.30"]
[Round "8"]
[White "tgpgoat"]
[Black "Oleg_Papayan"]
[Result "1/2-1/2"]
[WhiteElo "2472"]
[BlackElo "2636"]
[TimeControl "180+1"]
[EndTime "15:29:48 PDT"]
[Termination "Game drawn - insufficient material"]

1. Nf3 {[%clk 0:03:00.9]} 1... Nf6 {[%clk 0:03:00.1]} 2. b3 {[%clk 0:03:01]}
2... d5 {[%clk 0:02:56.9]} 3. Bb2 {[%clk 0:03:01.5]} 3... Bf5 {[%clk 0:02:56.7]}
4. e3 {[%clk 0:03:01]} 4... e6 {[%clk 0:02:56.9]} 5. Be2 {[%clk 0:03:01.5]} 5...
h6 {[%clk 0:02:57.2]} 6. O-O {[%clk 0:03:02.1]} 6... Be7 {[%clk 0:02:55.4]} 7.
c4 {[%clk 0:03:02.1]} 7... c6 {[%clk 0:02:55.4]} 8. Nc3 {[%clk 0:03:02]} 8...
O-O {[%clk 0:02:55.3]} 9. Rc1 {[%clk 0:03:02.2]} 9... Nbd7 {[%clk 0:02:55.3]}
10. d4 {[%clk 0:03:02.1]} 10... Bh7 {[%clk 0:02:55.2]} 11. Ne5 {[%clk
0:03:01.8]} 11... Ne4 {[%clk 0:02:51.8]} 12. Nxe4 {[%clk 0:03:01.4]} 12... Bxe4
{[%clk 0:02:52.3]} 13. Nxd7 {[%clk 0:03:00.8]} 13... Qxd7 {[%clk 0:02:51.4]} 14.
Bd3 {[%clk 0:03:01.4]} 14... Bxd3 {[%clk 0:02:40.9]} 15. Qxd3 {[%clk 0:03:02.3]}
15... Bf6 {[%clk 0:02:39.7]} 16. e4 {[%clk 0:03:02.1]} 16... dxe4 {[%clk
0:02:38.5]} 17. Qxe4 {[%clk 0:03:01.6]} 17... Rad8 {[%clk 0:02:35.5]} 18. Rcd1
{[%clk 0:02:48.1]} 18... g6 {[%clk 0:02:29.2]} 19. Qe2 {[%clk 0:02:36.2]} 19...
Qc7 {[%clk 0:02:15]} 20. Rd3 {[%clk 0:02:31.9]} 20... Rd7 {[%clk 0:02:12.9]} 21.
Rfd1 {[%clk 0:02:31.5]} 21... Rfd8 {[%clk 0:02:12.5]} 22. Bc1 {[%clk 0:02:27.9]}
22... Bg7 {[%clk 0:02:06.4]} 23. Be3 {[%clk 0:02:23]} 23... h5 {[%clk
0:02:02.5]} 24. h3 {[%clk 0:02:19.3]} 24... Qa5 {[%clk 0:01:57.4]} 25. Qd2
{[%clk 0:02:05.4]} 25... Qxd2 {[%clk 0:01:54.9]} 26. R3xd2 {[%clk 0:02:04.8]}
26... Kf8 {[%clk 0:01:40.2]} 27. Kf1 {[%clk 0:02:02.1]} 27... Ke7 {[%clk
0:01:37.7]} 28. Ke2 {[%clk 0:02:01.8]} 28... b6 {[%clk 0:01:33]} 29. a4 {[%clk
0:02:01.2]} 29... e5 {[%clk 0:01:20.2]} 30. d5 {[%clk 0:01:56.8]} 30... cxd5
{[%clk 0:01:09.6]} 31. cxd5 {[%clk 0:01:57.7]} 31... Rc8 {[%clk 0:01:03.8]} 32.
Ra1 {[%clk 0:01:39.2]} 32... Rc3 {[%clk 0:01:00.4]} 33. a5 {[%clk 0:01:16.9]}
33... Rxb3 {[%clk 0:00:55]} 34. axb6 {[%clk 0:01:17.1]} 34... axb6 {[%clk
0:00:55.9]} 35. Ra8 {[%clk 0:01:16.5]} 35... Rb5 {[%clk 0:00:45.1]} 36. Rg8
{[%clk 0:01:15.7]} 36... Bf6 {[%clk 0:00:41.6]} 37. Rc2 {[%clk 0:01:07.9]} 37...
Rbxd5 {[%clk 0:00:35.7]} 38. Bxb6 {[%clk 0:01:07.5]} 38... Ke6 {[%clk
0:00:28.2]} 39. Be3 {[%clk 0:00:51.5]} 39... Kf5 {[%clk 0:00:24.7]} 40. Rgc8
{[%clk 0:00:51.1]} 40... h4 {[%clk 0:00:23.1]} 41. R8c4 {[%clk 0:00:50.1]} 41...
g5 {[%clk 0:00:22]} 42. Rc6 {[%clk 0:00:49.3]} 42... R7d6 {[%clk 0:00:20.7]} 43.
Rc7 {[%clk 0:00:49]} 43... Rd7 {[%clk 0:00:20.4]} 44. R7c6 {[%clk 0:00:48.4]}
44... R5d6 {[%clk 0:00:20.9]} 45. R6c5 {[%clk 0:00:49.1]} 45... Kg6 {[%clk
0:00:20.7]} 46. Ra5 {[%clk 0:00:48.6]} 46... Bg7 {[%clk 0:00:20.5]} 47. Rc8
{[%clk 0:00:43.2]} 47... f5 {[%clk 0:00:21]} 48. Rcc5 {[%clk 0:00:30.6]} 48...
f4 {[%clk 0:00:19.8]} 49. Bc1 {[%clk 0:00:31.2]} 49... Bf6 {[%clk 0:00:17]} 50.
Rc2 {[%clk 0:00:29.6]} 50... e4 {[%clk 0:00:15.8]} 51. Bb2 {[%clk 0:00:29.1]}
51... Bxb2 {[%clk 0:00:11.5]} 52. Rxb2 {[%clk 0:00:30]} 52... Rd5 {[%clk
0:00:12]} 53. Ra4 {[%clk 0:00:29.9]} 53... Kf5 {[%clk 0:00:11.7]} 54. Ra8 {[%clk
0:00:26.3]} 54... R7d6 {[%clk 0:00:09.9]} 55. Rf8+ {[%clk 0:00:26.5]} 55... Rf6
{[%clk 0:00:10.5]} 56. Re8 {[%clk 0:00:26.4]} 56... Re5 {[%clk 0:00:10.9]} 57.
Rxe5+ {[%clk 0:00:24.9]} 57... Kxe5 {[%clk 0:00:11.5]} 58. Rb5+ {[%clk
0:00:24.8]} 58... Kd4 {[%clk 0:00:12.1]} 59. Rxg5 {[%clk 0:00:23.4]} 59... f3+
{[%clk 0:00:12.7]} 60. gxf3 {[%clk 0:00:23.1]} 60... Rxf3 {[%clk 0:00:13.6]} 61.
Rg8 {[%clk 0:00:18.5]} 61... Rxh3 {[%clk 0:00:13.7]} 62. Rd8+ {[%clk 0:00:19.4]}
62... Ke5 {[%clk 0:00:13.9]} 63. Rh8 {[%clk 0:00:17.3]} 63... Rh1 {[%clk
0:00:07]} 64. Rh7 {[%clk 0:00:14.1]} 64... h3 {[%clk 0:00:06.1]} 65. Rh8 {[%clk
0:00:14.3]} 65... Kd5 {[%clk 0:00:05.6]} 66. Rh5+ {[%clk 0:00:14]} 66... Kd4
{[%clk 0:00:06]} 67. Rh4 {[%clk 0:00:14.5]} 67... Ke5 {[%clk 0:00:04.9]} 68.
Rh5+ {[%clk 0:00:14.6]} 68... Kf4 {[%clk 0:00:05.2]} 69. Rh8 {[%clk 0:00:15.5]}
69... Rh2 {[%clk 0:00:04.2]} 70. Rh4+ {[%clk 0:00:14.8]} 70... Kf5 {[%clk
0:00:02.8]} 71. Rh8 {[%clk 0:00:15.2]} 71... Kf4 {[%clk 0:00:03.4]} 72. Rh4+
{[%clk 0:00:15.1]} 72... Ke5 {[%clk 0:00:04.1]} 73. Rh8 {[%clk 0:00:14.8]} 73...
Rh1 {[%clk 0:00:04.6]} 74. Rh4 {[%clk 0:00:13.9]} 74... Kf5 {[%clk 0:00:04.5]}
75. Rh8 {[%clk 0:00:13.8]} 75... h2 {[%clk 0:00:03.4]} 76. Rh7 {[%clk
0:00:12.7]} 76... Kg6 {[%clk 0:00:03]} 77. Rh8 {[%clk 0:00:12.9]} 77... Kf5
{[%clk 0:00:03.1]} 78. Rh5+ {[%clk 0:00:12.7]} 78... Kg6 {[%clk 0:00:03.3]} 79.
Rh8 {[%clk 0:00:13.1]} 79... e3 {[%clk 0:00:03.6]} 80. Rh3 {[%clk 0:00:08.1]}
80... Ra1 {[%clk 0:00:01.9]} 81. Rxh2 {[%clk 0:00:05.8]} 81... exf2 {[%clk
0:00:02.5]} 82. Kxf2 {[%clk 0:00:05.9]} 82... Ra2+ {[%clk 0:00:03]} 83. Kg3
{[%clk 0:00:06.8]} 83... Rxh2 {[%clk 0:00:03.6]} 84. Kxh2 {[%clk 0:00:07.7]}
1/2-1/2

[Event "Late-Titled-Tuesday-Blitz-April-30-2024"]
[Site "Chess.com"]
[Date "2024.04.30"]
[Round "8"]
[White "igorknyazev"]
[Black "Dr_Pepper18"]
[Result "0-1"]
[WhiteElo "2241"]
[BlackElo "2479"]
[TimeControl "180+1"]
[EndTime "15:29:54 PDT"]
[Termination "Dr_Pepper18 won by resignation"]

1. e4 {[%clk 0:02:57]} 1... e6 {[%clk 0:03:00.2]} 2. d4 {[%clk 0:02:56.4]} 2...
d5 {[%clk 0:03:00.9]} 3. exd5 {[%clk 0:02:56.4]} 3... exd5 {[%clk 0:03:01.8]} 4.
Bd3 {[%clk 0:02:56.3]} 4... Nc6 {[%clk 0:03:02.1]} 5. Nf3 {[%clk 0:02:54.9]}
5... Nb4 {[%clk 0:03:02]} 6. Bb5+ {[%clk 0:02:52.5]} 6... c6 {[%clk 0:03:02.4]}
7. Be2 {[%clk 0:02:51.9]} 7... Bf5 {[%clk 0:03:01.1]} 8. Na3 {[%clk 0:02:50.3]}
8... Na6 {[%clk 0:02:57.6]} 9. O-O {[%clk 0:02:43.1]} 9... Nc7 {[%clk
0:02:49.7]} 10. Re1 {[%clk 0:02:38.1]} 10... Bxa3 {[%clk 0:02:39.3]} 11. bxa3
{[%clk 0:02:30.4]} 11... Ne7 {[%clk 0:02:24.4]} 12. Nh4 {[%clk 0:02:21.1]} 12...
Be6 {[%clk 0:02:13.6]} 13. Bf4 {[%clk 0:02:08.5]} 13... Nc8 {[%clk 0:01:47.2]}
14. Bd3 {[%clk 0:02:00.4]} 14... Qxh4 {[%clk 0:01:09.5]} 15. Bxc7 {[%clk
0:01:59.7]} 15... O-O {[%clk 0:00:39.3]} 16. Rb1 {[%clk 0:01:42.6]} 16... b6
{[%clk 0:00:36.9]} 17. Re3 {[%clk 0:01:28.8]} 17... Ne7 {[%clk 0:00:23]} 18. Rg3
{[%clk 0:01:13.5]} 18... Ng6 {[%clk 0:00:20.4]} 19. c3 {[%clk 0:01:02.5]} 19...
Qe7 {[%clk 0:00:19.4]} 20. Bxg6 {[%clk 0:00:55.1]} 20... hxg6 {[%clk 0:00:20.3]}
21. Bf4 {[%clk 0:00:48.1]} 21... Bf5 {[%clk 0:00:18.8]} 22. Rb3 {[%clk
0:00:38.7]} 22... Rfe8 {[%clk 0:00:18.5]} 23. h3 {[%clk 0:00:29.9]} 23... Qe1+
{[%clk 0:00:16.7]} 24. Qxe1 {[%clk 0:00:29.7]} 24... Rxe1+ {[%clk 0:00:17.6]}
25. Kh2 {[%clk 0:00:30.3]} 25... Re2 {[%clk 0:00:18.2]} 26. Be3 {[%clk
0:00:16.6]} 26... Rxa2 {[%clk 0:00:16.7]} 27. h4 {[%clk 0:00:14.8]} 27... Bc2
{[%clk 0:00:15.2]} 28. Rb4 {[%clk 0:00:11.7]} 28... Rxa3 {[%clk 0:00:13.8]} 29.
h5 {[%clk 0:00:11.2]} 29... gxh5 {[%clk 0:00:12.2]} 30. Bh6 {[%clk 0:00:10.3]}
30... Bg6 {[%clk 0:00:12.8]} 31. Bf4 {[%clk 0:00:09.6]} 31... Re8 {[%clk
0:00:10.9]} 32. Be5 {[%clk 0:00:09.6]} 32... h4 {[%clk 0:00:10.1]} 33. Rg4
{[%clk 0:00:09.5]} 33... Rxc3 {[%clk 0:00:10]} 34. Rxh4 {[%clk 0:00:08.9]} 34...
Rc4 {[%clk 0:00:07.9]} 35. Rb3 {[%clk 0:00:07.2]} 35... Rxe5 {[%clk 0:00:07.4]}
36. Rbh3 {[%clk 0:00:05.1]} 36... Rh5 {[%clk 0:00:07.3]} 37. Rxh5 {[%clk
0:00:04.1]} 37... Bxh5 {[%clk 0:00:08.2]} 38. Rxh5 {[%clk 0:00:04.2]} 38... Rxd4
{[%clk 0:00:08.8]} 39. Re5 {[%clk 0:00:04.9]} 39... Rc4 {[%clk 0:00:06.8]} 40.
Re8+ {[%clk 0:00:04.8]} 40... Kh7 {[%clk 0:00:07.3]} 41. Re7 {[%clk 0:00:05.7]}
41... a5 {[%clk 0:00:06.9]} 42. Rxf7 {[%clk 0:00:05.8]} 42... a4 {[%clk
0:00:07.3]} 43. Ra7 {[%clk 0:00:06.5]} 43... b5 {[%clk 0:00:06.8]} 44. Kg3
{[%clk 0:00:07.4]} 44... d4 {[%clk 0:00:06.3]} 45. f4 {[%clk 0:00:07.9]} 45...
Rc3+ {[%clk 0:00:06.4]} 46. Kf2 {[%clk 0:00:08.1]} 46... a3 {[%clk 0:00:06.6]}
47. Ke2 {[%clk 0:00:08]} 47... b4 {[%clk 0:00:06.9]} 48. g4 {[%clk 0:00:07.8]}
48... c5 {[%clk 0:00:07.1]} 49. f5 {[%clk 0:00:08.4]} 49... Kh6 {[%clk
0:00:05.9]} 50. Ra6+ {[%clk 0:00:06.7]} 50... Kh7 {[%clk 0:00:03.5]} 51. Ra7
{[%clk 0:00:06.2]} 51... Kg8 {[%clk 0:00:03.9]} 52. g5 {[%clk 0:00:06]} 52... b3
{[%clk 0:00:01.3]} 53. g6 {[%clk 0:00:06]} 53... Kf8 {[%clk 0:00:00.6]} 54. Rxa3
{[%clk 0:00:04.4]} 54... Re3+ {[%clk 0:00:00.3]} 55. Kd2 {[%clk 0:00:04]} 55...
Ke7 {[%clk 0:00:01.2]} 56. Ra7+ {[%clk 0:00:03.2]} 56... Kf6 {[%clk 0:00:02.1]}
57. Rf7+ {[%clk 0:00:03.2]} 57... Kg5 {[%clk 0:00:02.6]} 58. Rxg7 {[%clk
0:00:03.3]} 58... b2 {[%clk 0:00:03.2]} 59. Rb7 {[%clk 0:00:03.1]} 59... c4
{[%clk 0:00:03.7]} 60. g7 {[%clk 0:00:03.3]} 60... c3+ {[%clk 0:00:04.2]} 61.
Kc2 {[%clk 0:00:03.7]} 61... Re8 {[%clk 0:00:02.9]} 62. Rb5 {[%clk 0:00:01.5]}
62... Kf6 {[%clk 0:00:02.3]} 63. Rb7 {[%clk 0:00:01.5]} 63... Kxf5 {[%clk
0:00:02.1]} 64. Rf7+ {[%clk 0:00:01.7]} 64... Kg6 {[%clk 0:00:02.3]} 65. Rf8
{[%clk 0:00:02.6]} 65... Re2+ {[%clk 0:00:01.1]} 66. Kd3 {[%clk 0:00:01.4]}
66... Kxg7 {[%clk 0:00:02]} 67. Rc8 {[%clk 0:00:00.5]} 67... Rd2+ {[%clk
0:00:02.5]} 68. Ke4 {[%clk 0:00:00.5]} 68... b1=Q+ {[%clk 0:00:03.4]} 69. Kd5
{[%clk 0:00:01.4]} 69... Qd3 {[%clk 0:00:03.8]} 70. Rc7+ {[%clk 0:00:01.1]}
70... Kf6 {[%clk 0:00:04.7]} 71. Rc6+ {[%clk 0:00:02]} 71... Kg5 {[%clk
0:00:05.3]} 72. Rc5 {[%clk 0:00:02.4]} 72... Kf4 {[%clk 0:00:06.2]} 73. Kd6
{[%clk 0:00:02.6]} 73... Ke3 {[%clk 0:00:07.1]} 74. Rd5 {[%clk 0:00:03.2]} 74...
Ke2 {[%clk 0:00:08]} 75. Ke5 {[%clk 0:00:03.7]} 75... Kd1 {[%clk 0:00:08.9]} 76.
Rxd4 {[%clk 0:00:04.3]} 76... Kc2 {[%clk 0:00:09.8]} 77. Rxd3 {[%clk 0:00:04.7]}
77... Rxd3 {[%clk 0:00:10.1]} 78. Ke4 {[%clk 0:00:05.6]} 78... Kd2 {[%clk
0:00:10.8]} 79. Kf4 {[%clk 0:00:06.3]} 79... c2 {[%clk 0:00:11.7]} 80. Ke4
{[%clk 0:00:07.1]} 80... c1=Q {[%clk 0:00:12.5]} 81. Kf4 {[%clk 0:00:08]} 81...
Qc4+ {[%clk 0:00:13.1]} 0-1

[Event "Late-Titled-Tuesday-Blitz-April-30-2024"]
[Site "Chess.com"]
[Date "2024.04.30"]
[Round "8"]
[White "Jakhongir-Vakhidov"]
[Black "rasmussvane"]
[Result "1-0"]
[WhiteElo "2760"]
[BlackElo "2936"]
[TimeControl "180+1"]
[EndTime "15:29:58 PDT"]
[Termination "Jakhongir-Vakhidov won by checkmate"]

1. c4 {[%clk 0:02:55.9]} 1... e6 {[%clk 0:02:57.5]} 2. Nc3 {[%clk 0:02:55.8]}
2... d5 {[%clk 0:02:57.4]} 3. d4 {[%clk 0:02:56.5]} 3... h6 {[%clk 0:02:56.6]}
4. Nf3 {[%clk 0:02:45.7]} 4... Nf6 {[%clk 0:02:56]} 5. Bf4 {[%clk 0:02:46.1]}
5... Bd6 {[%clk 0:02:55.5]} 6. Bxd6 {[%clk 0:02:46.3]} 6... Qxd6 {[%clk
0:02:56.4]} 7. c5 {[%clk 0:02:46.3]} 7... Qe7 {[%clk 0:02:55.6]} 8. e3 {[%clk
0:02:43.6]} 8... O-O {[%clk 0:02:55.4]} 9. Be2 {[%clk 0:02:09.4]} 9... Nc6
{[%clk 0:02:54.4]} 10. Bb5 {[%clk 0:02:08.4]} 10... Bd7 {[%clk 0:02:53.9]} 11.
O-O {[%clk 0:02:07.5]} 11... Rfd8 {[%clk 0:02:28.1]} 12. Re1 {[%clk 0:02:05.1]}
12... b6 {[%clk 0:02:26.4]} 13. Bxc6 {[%clk 0:02:02.2]} 13... Bxc6 {[%clk
0:02:27.3]} 14. Ne5 {[%clk 0:02:02.8]} 14... Be8 {[%clk 0:02:27]} 15. c6 {[%clk
0:02:03]} 15... a6 {[%clk 0:02:21.5]} 16. Rc1 {[%clk 0:01:54.7]} 16... Rd6
{[%clk 0:02:13.9]} 17. Nb1 {[%clk 0:01:52.6]} 17... Nh7 {[%clk 0:02:12]} 18. Qa4
{[%clk 0:01:48]} 18... f6 {[%clk 0:02:01.6]} 19. Nd3 {[%clk 0:01:47.7]} 19...
Ng5 {[%clk 0:01:48.4]} 20. Nd2 {[%clk 0:01:35.9]} 20... a5 {[%clk 0:01:17.3]}
21. b4 {[%clk 0:01:34]} 21... Qd8 {[%clk 0:01:15.7]} 22. b5 {[%clk 0:01:33.8]}
22... Qe7 {[%clk 0:01:13.5]} 23. f4 {[%clk 0:01:32.4]} 23... Ne4 {[%clk
0:01:06.5]} 24. Nxe4 {[%clk 0:01:28.3]} 24... dxe4 {[%clk 0:01:07.4]} 25. Nf2
{[%clk 0:01:28.9]} 25... f5 {[%clk 0:01:04.6]} 26. Qa3 {[%clk 0:00:41.2]} 26...
Kh7 {[%clk 0:01:01]} 27. Qb2 {[%clk 0:00:34.5]} 27... a4 {[%clk 0:00:58.5]} 28.
Nd1 {[%clk 0:00:29.5]} 28... Rdd8 {[%clk 0:00:49.7]} 29. Nc3 {[%clk 0:00:28.9]}
29... a3 {[%clk 0:00:47.9]} 30. Qf2 {[%clk 0:00:28.6]} 30... g5 {[%clk
0:00:41.2]} 31. fxg5 {[%clk 0:00:24.4]} 31... Qxg5 {[%clk 0:00:34.5]} 32. Ne2
{[%clk 0:00:21.2]} 32... e5 {[%clk 0:00:29.6]} 33. dxe5 {[%clk 0:00:12.3]} 33...
Rd2 {[%clk 0:00:29.6]} 34. e6 {[%clk 0:00:12.4]} 34... Bh5 {[%clk 0:00:27.8]}
35. Rcd1 {[%clk 0:00:09.5]} 35... Rad8 {[%clk 0:00:22.3]} 36. Rxd2 {[%clk
0:00:09.3]} 36... Rxd2 {[%clk 0:00:23.2]} 37. h4 {[%clk 0:00:07]} 37... Qf6
{[%clk 0:00:19.4]} 38. e7 {[%clk 0:00:07.6]} 38... Rxa2 {[%clk 0:00:18.3]} 39.
Qf4 {[%clk 0:00:04.8]} 39... Qxe7 {[%clk 0:00:16.4]} 40. Qxf5+ {[%clk
0:00:05.3]} 40... Bg6 {[%clk 0:00:16.9]} 41. Qg4 {[%clk 0:00:05.4]} 41... Rd2
{[%clk 0:00:10.8]} 42. h5 {[%clk 0:00:05.2]} 42... Bf7 {[%clk 0:00:09.9]} 43.
Qf5+ {[%clk 0:00:05]} 43... Kg7 {[%clk 0:00:10.5]} 44. Nf4 {[%clk 0:00:03.4]}
44... a2 {[%clk 0:00:09.5]} 45. Rf1 {[%clk 0:00:02.5]} 45... Qg5 {[%clk
0:00:05.8]} 46. Qc8 {[%clk 0:00:01.9]} 46... Rb2 {[%clk 0:00:04]} 47. Qxc7
{[%clk 0:00:01.8]} 47... Qf5 {[%clk 0:00:03.6]} 48. Qd6 {[%clk 0:00:01]} 48...
Rb1 {[%clk 0:00:03.9]} 49. Qd4+ {[%clk 0:00:01.9]} 49... Kh7 {[%clk 0:00:03.9]}
50. c7 {[%clk 0:00:02.3]} 50... Qxb5 {[%clk 0:00:03.8]} 51. Kh2 {[%clk
0:00:01.4]} 51... Qxf1 {[%clk 0:00:04]} 52. Qf6 {[%clk 0:00:00.9]} 52... Qh1+
{[%clk 0:00:04]} 53. Kg3 {[%clk 0:00:01.5]} 53... Qe1+ {[%clk 0:00:04.3]} 54.
Kh2 {[%clk 0:00:02.2]} 54... a1=Q {[%clk 0:00:03.1]} 55. Qxf7+ {[%clk
0:00:01.7]} 55... Qg7 {[%clk 0:00:03.7]} 56. Qxg7+ {[%clk 0:00:02.3]} 56... Kxg7
{[%clk 0:00:04.1]} 57. c8=Q {[%clk 0:00:03.2]} 57... Qh4+ {[%clk 0:00:04]} 58.
Nh3 {[%clk 0:00:03.9]} 58... Qxh5 {[%clk 0:00:03.9]} 59. Qd7+ {[%clk 0:00:04.2]}
59... Qf7 {[%clk 0:00:04.4]} 60. Qg4+ {[%clk 0:00:03.4]} 60... Qg6 {[%clk
0:00:04.8]} 61. Qd7+ {[%clk 0:00:03.8]} 61... Qf7 {[%clk 0:00:05.4]} 62. Qg4+
{[%clk 0:00:03.7]} 62... Kh8 {[%clk 0:00:06]} 63. Nf4 {[%clk 0:00:03.8]} 63...
Rc1 {[%clk 0:00:04.5]} 64. Qc8+ {[%clk 0:00:03.5]} 64... Kh7 {[%clk 0:00:04.6]}
65. Qg4 {[%clk 0:00:01.4]} 65... Rc5 {[%clk 0:00:04.5]} 66. Qh4 {[%clk
0:00:01.2]} 66... Rg5 {[%clk 0:00:04.7]} 67. Qe1 {[%clk 0:00:01.2]} 67... b5
{[%clk 0:00:04.6]} 68. Qb4 {[%clk 0:00:01.5]} 68... Qd7 {[%clk 0:00:04.1]} 69.
Qxe4+ {[%clk 0:00:01.9]} 69... Qf5 {[%clk 0:00:04.3]} 70. Qb7+ {[%clk
0:00:02.1]} 70... Rg7 {[%clk 0:00:04.8]} 71. Qf3 {[%clk 0:00:02.5]} 71... Qe5
{[%clk 0:00:05.1]} 72. Qd1 {[%clk 0:00:02]} 72... Qe4 {[%clk 0:00:05.2]} 73. Qd2
{[%clk 0:00:02]} 73... b4 {[%clk 0:00:05.2]} 74. Nd5 {[%clk 0:00:02.6]} 74... b3
{[%clk 0:00:03.9]} 75. Nf6+ {[%clk 0:00:02.7]} 75... Kh8 {[%clk 0:00:02.4]} 76.
Nxe4 {[%clk 0:00:03.6]} 76... Re7 {[%clk 0:00:02.3]} 77. Qb2+ {[%clk 0:00:03.7]}
77... Kg8 {[%clk 0:00:02.7]} 78. Qxb3+ {[%clk 0:00:04]} 78... Kg7 {[%clk
0:00:03.2]} 79. Qd5 {[%clk 0:00:04.6]} 79... Rf7 {[%clk 0:00:02.9]} 80. Nd6
{[%clk 0:00:05]} 80... Rf6 {[%clk 0:00:03]} 81. Ne8+ {[%clk 0:00:05.4]} 81...
Kg6 {[%clk 0:00:03.7]} 82. Nxf6 {[%clk 0:00:06.3]} 82... Kxf6 {[%clk 0:00:04.3]}
83. e4 {[%clk 0:00:07]} 83... h5 {[%clk 0:00:05.2]} 84. Qf5+ {[%clk 0:00:07.1]}
84... Kg7 {[%clk 0:00:05.6]} 85. Kg3 {[%clk 0:00:08]} 85... Kh6 {[%clk
0:00:06.5]} 86. Kh4 {[%clk 0:00:08.6]} 86... Kg7 {[%clk 0:00:07]} 87. Kg5 {[%clk
0:00:09.1]} 87... Kh8 {[%clk 0:00:07.9]} 88. Qd7 {[%clk 0:00:09.4]} 88... h4
{[%clk 0:00:08.7]} 89. Kg6 {[%clk 0:00:10.3]} 89... h3 {[%clk 0:00:09.5]} 90.
Qc8# {[%clk 0:00:10.9]} 1-0